bitfinex-derivatives/quotes_BTCF0:USTF0_20210703
["timestamp","ask_amount","ask_price","bid_price","bid_amount"]
[1625328906621,5.77011465,34491.0,34481.0,0.55448031]
[1625328906722,5.77011465,34491.0,34481.0,0.55648031]
[1625328906821,5.77011465,34491.0,34481.0,0.89904148]
[1625328907122,0.01718964,34490.0,34482.0,0.00343793]
[1625328907221,0.13518964,34490.0,34482.0,0.06243793]
[1625328907323,1.49082407,34485.0,34482.0,0.06243793]
[1625328907672,2.48486089,34483.0,34482.0,0.059]
[1625328907973,2.48486089,34483.0,34482.0,0.14463995]
[1625328908073,2.48486089,34483.0,34482.0,0.14807786]
[1625328908375,2.48486089,34483.0,34482.0,0.31935716]
[1625328908725,2.48486089,34483.0,34482.0,0.26035716]
[1625328909127,2.48486089,34483.0,34482.0,0.31935716]
[1625328909228,2.48486089,34483.0,34482.0,0.26035716]
[1625328909781,2.48486089,34483.0,34482.0,0.31935716]
[1625328909929,2.48486089,34483.0,34482.0,0.31591925]
[1625328910081,2.48486089,34483.0,34482.0,0.25691925]
[1625328910631,2.48486089,34483.0,34482.0,0.31591925]
[1625328910733,2.48486089,34483.0,34482.0,0.37835705]
[1625328910934,1.15961279,34483.0,34482.0,0.1214378]
[1625328911537,1.32569847,34485.0,34482.0,0.1214378]
[1625328911538,1.16078297,34485.0,34482.0,0.1214378]
[1625328911786,1.16078297,34485.0,34483.0,0.00343751]
[1625328911887,1.15971664,34487.0,34483.0,1.20243577]
[1625328911986,1.15971664,34487.0,34483.0,1.32043577]
[1625328912137,1.15971664,34487.0,34486.0,0.73435088]
[1625328912236,1.15971664,34487.0,34486.0,0.79335088]
[1625328912389,0.24057544,34498.0,34486.0,0.79335088]
[1625328912390,1.16022091,34488.0,34486.0,0.7967882]
[1625328912890,1.1606557,34490.0,34487.0,0.00343722]
[1625328913092,1.1606557,34490.0,34487.0,0.12143722]
[1625328913340,1.16127474,34491.0,34488.0,1.19895416]
[1625328913442,1.16127474,34491.0,34488.0,1.20239131]
[1625328913591,1.16127474,34491.0,34488.0,1.26139131]
[1625328913692,1.16074697,34492.0,34489.0,0.00343724]
[1625328913791,1.16074697,34492.0,34489.0,0.06243724]
[1625328914041,1.16074697,34492.0,34491.0,0.48115088]
[1625328914241,1.16074697,34492.0,34491.0,0.59915088]
[1625328914492,1.16074697,34492.0,34491.0,0.60258784]
[1625328914646,0.99494459,34492.0,34491.0,1.63016371]
[1625328915144,0.99423343,34494.0,34491.0,2.82897844]
[1625328915543,0.99423343,34494.0,34492.0,0.00343689]
[1625328915643,0.99423343,34494.0,34493.0,1.02754297]
[1625328915742,0.99423343,34494.0,34493.0,1.23106297]
[1625328915844,0.99423343,34494.0,34493.0,1.29006297]
[1625328916043,0.99423343,34494.0,34493.0,1.53407526]
[1625328916993,0.99423343,34494.0,34493.0,1.47507526]
[1625328917646,0.99423343,34494.0,34493.0,1.47163841]
[1625328917944,0.99423343,34494.0,34493.0,1.53063841]
[1625328918044,0.99423343,34494.0,34493.0,1.47163841]
[1625328918196,0.99423343,34494.0,34493.0,0.44409544]
[1625328918698,2.1489631,34494.0,34493.0,0.7864855]
[1625328919098,0.99423343,34494.0,34493.0,0.44409544]
[1625328919648,2.14724465,34494.0,34493.0,0.78649012]
[1625328920749,2.14724465,34494.0,34493.0,0.58297012]
[1625328920949,2.14724465,34494.0,34493.0,0.75414991]
[1625328922003,2.14724465,34494.0,34493.0,0.81314991]
[1625328922153,2.14724465,34494.0,34493.0,1.09425991]
[1625328922253,0.99423343,34494.0,34493.0,1.09425991]
[1625328922657,0.99423343,34494.0,34493.0,0.58068544]
[1625328923005,1.15197885,34495.0,34493.0,0.58068544]
[1625328923006,0.98775607,34495.0,34493.0,1.60759998]
[1625328923458,1.15207526,34496.0,34494.0,0.34230695]
[1625328923657,1.15207526,34496.0,34494.0,0.40130695]
[1625328923807,1.15207526,34496.0,34495.0,0.25673052]
[1625328924006,1.15207526,34496.0,34495.0,0.31573052]
[1625328924108,1.15207526,34496.0,34495.0,0.49730596]
[1625328924207,2.13989682,34496.0,34495.0,0.55630596]
[1625328924308,2.13989682,34496.0,34495.0,0.49730596]
[1625328924810,2.13989682,34496.0,34495.0,0.55630596]
[1625328925612,1.48119261,34501.0,34495.0,0.29957544]
[1625328925862,1.48119261,34501.0,34495.0,0.24057544]
[1625328925963,1.48119261,34501.0,34495.0,0.29957544]
[1625328926062,1.48119261,34501.0,34500.0,0.24057544]
[1625328926212,1.48119261,34501.0,34500.0,0.48115088]
[1625328926412,1.48119261,34501.0,34500.0,0.70608088]
[1625328926762,4.94061249,34501.0,34500.0,0.70608088]
[1625328929923,3.45941988,34501.0,34500.0,0.70608088]
[1625328932324,3.51841988,34501.0,34500.0,0.70608088]
[1625328932576,5.01308017,34501.0,34500.0,0.70608088]
[1625328932826,5.07208017,34501.0,34500.0,0.70608088]
[1625328932926,5.01308017,34501.0,34500.0,0.70608088]
[1625328933032,5.07208017,34501.0,34500.0,0.70608088]
[1625328933125,5.07208017,34501.0,34500.0,0.48115088]
[1625328933277,5.01308017,34501.0,34500.0,0.48115088]
[1625328933378,5.07208017,34501.0,34500.0,0.48115088]
[1625328933782,5.01308017,34501.0,34500.0,0.48115088]
[1625328933930,5.07208017,34501.0,34500.0,0.48115088]
[1625328934032,5.01308017,34501.0,34500.0,0.48115088]
[1625328934234,5.0302661,34501.0,34500.0,0.48115088]
[1625328934583,5.0302661,34501.0,34495.0,0.24057544]
[1625328934684,5.2640761,34501.0,34495.0,0.24057544]
[1625328934782,5.3230761,34501.0,34495.0,0.24057544]
[1625328935034,4.97181104,34496.0,34495.0,0.24057544]
[1625328935333,5.03081104,34496.0,34495.0,0.24057544]
[1625328936184,5.51196192,34496.0,34495.0,0.24057544]
[1625328937236,5.52914905,34496.0,34495.0,0.24057544]
[1625328938443,4.5347537,34496.0,34495.0,0.24057544]
[1625328938643,5.53207646,34496.0,34495.0,0.24057544]
[1625328938793,4.5347537,34496.0,34495.0,0.24057544]
[1625328939145,5.53176712,34496.0,34495.0,0.24057544]
[1625328939548,5.53176712,34496.0,34493.0,0.24057544]
[1625328939849,0.01718761,34495.0,34493.0,0.24057544]
[1625328940000,0.07618761,34495.0,34493.0,0.24057544]
[1625328940200,0.24057544,34494.0,34493.0,0.24057544]
[1625328940300,5.22492995,34494.0,34493.0,0.24057544]
[1625328940401,5.24211739,34494.0,34493.0,0.24057544]
[1625328941253,1.75303601,34494.0,34493.0,0.24057544]
[1625328941403,3.08445771,34494.0,34493.0,0.24057544]
[1625328941702,5.25191342,34494.0,34493.0,0.24057544]
[1625328944257,5.91907356,34494.0,34493.0,0.24057544]
[1625328948920,5.91907356,34494.0,34489.0,0.23189]
[1625328949020,5.91907356,34494.0,34489.0,0.29089]
[1625328949420,0.01718717,34493.0,34489.0,0.29089]
[1625328949620,4.17522714,34490.0,34489.0,0.23189]
[1625328950120,4.17522714,34490.0,34489.0,0.29089]
[1625328950271,4.41580258,34490.0,34489.0,0.23532746]
[1625328950570,4.41580258,34490.0,34489.0,0.29432746]
[1625328950720,4.41580258,34490.0,34489.0,0.23532746]
[1625328951121,4.41580258,34490.0,34489.0,0.29432746]
[1625328951271,4.41580258,34490.0,34489.0,0.23189]
[1625328951372,4.41580258,34490.0,34489.0,0.059]
[1625328951522,4.41580258,34490.0,34489.0,0.06243743]
[1625328953476,4.41580258,34490.0,34489.0,0.00343743]
[1625328953577,4.41580258,34490.0,34489.0,0.06243743]
[1625328953727,4.41580258,34490.0,34489.0,0.00343743]
[1625328953877,4.41580258,34490.0,34489.0,0.059]
[1625328954027,4.41580258,34490.0,34489.0,0.00343746]
[1625328954781,4.41580258,34490.0,34489.0,0.06243746]
[1625328956180,4.41580258,34490.0,34489.0,0.14800041]
[1625328956181,3.07977665,34490.0,34489.0,0.14800041]
[1625328958083,3.07977665,34490.0,34489.0,0.31914245]
[1625328959286,3.07977665,34490.0,34489.0,0.66145098]
[1625328960489,4.41883857,34490.0,34489.0,0.66145098]
[1625328962044,4.41883857,34490.0,34489.0,0.57588803]
[1625328962045,3.07977665,34490.0,34489.0,0.57588803]
[1625328962998,3.07977665,34490.0,34489.0,0.40474599]
[1625328963702,3.09696311,34490.0,34489.0,0.40474599]
[1625328963950,3.09696311,34490.0,34489.0,0.57595301]
[1625328964302,3.09696311,34490.0,34489.0,0.06243746]
[1625328965102,3.09696311,34490.0,34489.0,0.7474121]
[1625328967055,3.09696311,34490.0,34489.0,1.77515573]
[1625328967507,3.09696311,34490.0,34489.0,0.7474121]
[1625328967707,3.07977665,34490.0,34489.0,0.7474121]
[1625328968208,1.50714218,34495.0,34489.0,0.7474121]
[1625328968307,1.50714218,34495.0,34489.0,1.4259121]
[1625328968408,1.50714218,34495.0,34494.0,0.72172632]
[1625328968508,1.50916256,34496.0,34494.0,0.96888632]
[1625328968609,1.50916256,34496.0,34494.0,1.08688632]
[1625328968711,1.50916256,34496.0,34494.0,1.09032292]
[1625328968963,1.50916256,34496.0,34495.0,0.00343635]
[1625328969065,1.50916256,34496.0,34495.0,0.12143635]
[1625328969312,0.58855636,34496.0,34495.0,0.12143635]
[1625328969511,0.52535636,34496.0,34495.0,0.12143635]
[1625328969762,1.51230252,34506.0,34495.0,0.12143635]
[1625328969862,1.32330252,34506.0,34495.0,0.67843635]
[1625328970113,1.32330252,34506.0,34496.0,0.00343582]
[1625328970213,0.16830609,34498.0,34496.0,0.06243582]
[1625328970313,0.16830609,34498.0,34496.0,0.12143582]
[1625328970412,0.16830609,34498.0,34497.0,0.24057544]
[1625328970562,0.16830609,34498.0,34497.0,0.35857544]
[1625328970713,0.13670609,34498.0,34497.0,0.36201117]
[1625328971014,0.10510609,34498.0,34497.0,0.36201117]
[1625328971214,0.07350609,34498.0,34497.0,0.36201117]
[1625328971313,0.04190609,34498.0,34497.0,0.39351117]
[1625328971414,0.01030609,34498.0,34497.0,0.39351117]
[1625328971517,0.24057544,34508.0,34497.0,0.39351117]
[1625328971666,0.24057544,34508.0,34497.0,0.45051117]
[1625328971767,0.24057544,34508.0,34497.0,0.53791117]
[1625328971917,0.24057544,34508.0,34498.0,0.00343569]
[1625328972119,0.24057544,34508.0,34498.0,0.12143569]
[1625328972418,0.24057544,34508.0,34507.0,0.48115088]
[1625328972518,0.24057544,34508.0,34507.0,0.75613088]
[1625328972619,0.24057544,34508.0,34507.0,0.87413088]
[1625328974573,0.74622279,34508.0,34507.0,0.87413088]
[1625328978234,0.74622279,34508.0,34507.0,0.81513088]
[1625328978436,0.74622279,34508.0,34507.0,0.54015088]
[1625328978737,0.74622279,34508.0,34507.0,0.48115088]
[1625328978838,0.74622279,34508.0,34507.0,0.54015088]
[1625328979088,0.74622279,34508.0,34507.0,0.48115088]
[1625328979187,0.74622279,34508.0,34507.0,0.54015088]
[1625328979290,0.74622279,34508.0,34507.0,0.48115088]
[1625328980242,0.80522279,34508.0,34507.0,0.48115088]
[1625328980442,0.86422279,34508.0,34507.0,0.48115088]
[1625328980792,0.80522279,34508.0,34507.0,0.48115088]
[1625328981041,0.86422279,34508.0,34507.0,0.48115088]
[1625328981241,0.80522279,34508.0,34507.0,0.48115088]
[1625328981391,0.86422279,34508.0,34507.0,0.48115088]
[1625328981492,0.80522279,34508.0,34507.0,0.48115088]
[1625328981692,0.86422279,34508.0,34507.0,0.48115088]
[1625328982041,2.38803098,34508.0,34507.0,0.48115088]
[1625328982943,2.32903098,34508.0,34507.0,0.48115088]
[1625328983243,3.68345016,34508.0,34507.0,0.48115088]
[1625328983443,3.74245016,34508.0,34507.0,0.48115088]
[1625328984996,3.68345016,34508.0,34507.0,0.48115088]
[1625328985097,3.74245016,34508.0,34507.0,0.48115088]
[1625328985248,3.68345016,34508.0,34507.0,0.48115088]
[1625328985504,3.74245016,34508.0,34507.0,0.48115088]
[1625328985704,3.68345016,34508.0,34507.0,0.48115088]
[1625328985856,3.74245016,34508.0,34507.0,0.48115088]
[1625328985953,3.68345016,34508.0,34507.0,0.48115088]
[1625328987707,3.62445016,34508.0,34507.0,0.48115088]
[1625328988858,4.8160305,34508.0,34507.0,0.48115088]
[1625328991264,4.8750305,34508.0,34507.0,0.48115088]
[1625328991814,4.89221098,34508.0,34507.0,0.48115088]
[1625328992871,4.95121098,34508.0,34507.0,0.48115088]
[1625328993973,4.95121098,34508.0,34503.0,0.24057544]
[1625328994420,0.01718121,34507.0,34503.0,0.24057544]
[1625328994521,0.24057544,34504.0,34503.0,0.24057544]
[1625328994670,3.30032335,34504.0,34503.0,0.24057544]
[1625328996274,3.31750462,34504.0,34503.0,0.24057544]
[1625328997125,3.30032335,34504.0,34503.0,0.24057544]
[1625328997376,3.31750468,34504.0,34503.0,0.24057544]
[1625328998979,4.33339046,34504.0,34503.0,0.24057544]
[1625329002286,5.85590118,34504.0,34503.0,0.24057544]
[1625329004039,4.33339046,34504.0,34503.0,0.24057544]
[1625329004141,4.39239046,34504.0,34503.0,0.24057544]
[1625329004492,5.85547775,34504.0,34503.0,0.24057544]
[1625329005441,5.91447775,34504.0,34503.0,0.24057544]
[1625329007745,5.91447775,34504.0,34503.0,0.24401167]
[1625329012558,5.85547775,34504.0,34503.0,0.24401167]
[1625329012758,5.85547775,34504.0,34503.0,0.30301167]
[1625329012909,5.91447775,34504.0,34503.0,0.24401167]
[1625329014112,5.85547775,34504.0,34503.0,0.24401167]
[1625329014314,5.85547775,34504.0,34503.0,0.30301167]
[1625329014412,5.85547775,34504.0,34503.0,0.24401167]
[1625329014513,5.85547775,34504.0,34503.0,0.30301167]
[1625329014862,5.85547775,34504.0,34503.0,0.24401167]
[1625329015814,5.85547775,34504.0,34503.0,0.30301167]
[1625329016114,5.85547775,34504.0,34503.0,0.24401167]
[1625329016214,5.85547775,34504.0,34503.0,0.30301167]
[1625329016315,5.85547775,34504.0,34503.0,0.24401167]
[1625329016415,5.85547775,34504.0,34503.0,0.30301167]
[1625329017066,5.85547775,34504.0,34503.0,0.24401167]
[1625329017166,5.85547775,34504.0,34503.0,0.30301167]
[1625329018121,4.33339046,34504.0,34503.0,0.30301167]
[1625329018621,4.33339046,34504.0,34503.0,0.8165618]
[1625329018721,4.33339046,34504.0,34503.0,1.05713724]
[1625329019977,4.33339046,34504.0,34503.0,0.99813724]
[1625329020175,4.33339046,34504.0,34503.0,0.48458711]
[1625329020324,4.39239046,34504.0,34503.0,0.48458711]
[1625329020424,4.33339046,34504.0,34503.0,0.48458711]
[1625329020626,5.86626613,34504.0,34503.0,0.48458711]
[1625329021426,5.92526613,34504.0,34503.0,0.48458711]
[1625329021528,6.16047613,34504.0,34503.0,0.48458711]
[1625329021627,6.21947613,34504.0,34503.0,0.48115088]
[1625329022281,7.9203297,34504.0,34503.0,0.48115088]
[1625329022681,7.9203297,34504.0,34503.0,0.24057544]
[1625329023432,7.95469575,34504.0,34503.0,0.24057544]
[1625329023833,7.95469575,34504.0,34497.0,0.24057544]
[1625329024183,0.05155128,34503.0,34497.0,0.24057544]
[1625329024282,0.05155128,34503.0,34498.0,0.00343675]
[1625329024437,1.69831665,34501.0,34498.0,0.00343675]
[1625329024534,1.75731665,34501.0,34497.0,0.24057544]
[1625329024683,0.24057544,34498.0,34497.0,0.24057544]
[1625329024985,0.25775945,34498.0,34497.0,0.24401224]
[1625329025484,0.31675945,34498.0,34497.0,0.24401224]
[1625329025583,5.8522328,34498.0,34497.0,0.24401224]
[1625329025683,5.9112328,34498.0,34497.0,0.24401224]
[1625329025783,5.9112328,34498.0,34497.0,0.24057544]
[1625329028285,6.58754426,34498.0,34497.0,0.24057544]
[1625329029188,6.52854426,34498.0,34497.0,0.24057544]
[1625329030894,6.58754426,34498.0,34497.0,0.24057544]
[1625329030994,6.52854426,34498.0,34497.0,0.24057544]
[1625329031194,6.58754426,34498.0,34494.0,0.24057544]
[1625329031294,6.64654426,34498.0,34494.0,0.24057544]
[1625329031747,6.25608843,34495.0,34492.0,0.9663]
[1625329031844,6.37408843,34495.0,34492.0,0.9663]
[1625329031998,0.01718541,34494.0,34492.0,0.9663]
[1625329032146,0.13518541,34494.0,34491.0,0.75441876]
[1625329032297,6.25468257,34493.0,34491.0,0.24057544]
[1625329032498,6.31368257,34493.0,34491.0,0.24057544]
[1625329032597,6.33086854,34493.0,34491.0,0.24057544]
[1625329032698,6.38986854,34493.0,34491.0,0.24057544]
[1625329032797,0.29957544,34492.0,34491.0,0.24057544]
[1625329032897,0.35857544,34492.0,34491.0,0.24057544]
[1625329033048,6.61116755,34492.0,34491.0,0.24057544]
[1625329039360,1.03459071,34492.0,34491.0,0.24057544]
[1625329039462,5.07245916,34492.0,34491.0,0.24057544]
[1625329039911,6.58701011,34492.0,34491.0,0.24057544]
[1625329043820,6.52801011,34492.0,34491.0,0.24057544]
[1625329044271,6.58701011,34492.0,34491.0,0.24057544]
[1625329045577,6.52801011,34492.0,34491.0,0.24057544]
[1625329045674,6.46901011,34492.0,34491.0,0.24057544]
[1625329046828,4.95483047,34492.0,34491.0,0.24057544]
[1625329047229,3.60887432,34492.0,34491.0,0.24057544]
[1625329047578,3.60887432,34492.0,34491.0,0.29957544]
[1625329048229,2.43114166,34492.0,34491.0,0.29957544]
[1625329048831,2.43114166,34492.0,34491.0,0.81592399]
[1625329049280,2.43114166,34492.0,34491.0,0.29957544]
[1625329049880,2.43114166,34492.0,34491.0,0.30301227]
[1625329050384,2.43114166,34492.0,34491.0,0.81598265]
[1625329050530,2.43114166,34492.0,34491.0,0.87498265]
[1625329050631,2.43114166,34492.0,34491.0,0.81598265]
[1625329050731,2.43114166,34492.0,34491.0,0.87498265]
[1625329050985,2.43114166,34492.0,34491.0,1.55890905]
[1625329051485,1.42149711,34492.0,34491.0,2.58486207]
[1625329051988,2.43596915,34492.0,34491.0,1.55890905]
[1625329052588,2.43596915,34492.0,34491.0,2.58497766]
[1625329053291,2.43596915,34492.0,34491.0,1.55890905]
[1625329057950,2.43596915,34492.0,34491.0,1.77810905]
[1625329058503,2.43596915,34492.0,34491.0,2.80446267]
[1625329059001,1.42149711,34492.0,34491.0,2.80446267]
[1625329059452,1.42149711,34492.0,34491.0,4.00190849]
[1625329062012,0.81749711,34492.0,34491.0,4.00190849]
[1625329062362,0.81749711,34492.0,34491.0,4.53340849]
[1625329062463,0.5071469,34494.0,34491.0,5.9019245]
[1625329062764,0.5071469,34494.0,34492.0,0.00343623]
[1625329062864,0.5071469,34494.0,34493.0,0.0865]
[1625329062967,0.50749984,34497.0,34493.0,4.55033961]
[1625329063319,0.50749984,34497.0,34494.0,0.00343607]
[1625329063419,0.50749984,34497.0,34494.0,0.12143607]
[1625329063768,0.50749984,34497.0,34495.0,0.00343603]
[1625329063873,0.50771567,34498.0,34496.0,4.10510433]
[1625329064121,0.50771567,34498.0,34496.0,4.22310433]
[1625329064219,0.50771567,34498.0,34497.0,0.0881]
[1625329064320,0.50771567,34498.0,34497.0,0.09153589]
[1625329064420,0.50771567,34498.0,34497.0,0.15053589]
[1625329064721,0.50774987,34500.0,34497.0,4.25483332]
[1625329064921,0.50774987,34500.0,34499.0,0.72172632]
[1625329065023,0.50774987,34500.0,34499.0,0.95221632]
[1625329065122,0.50774987,34500.0,34499.0,1.01121632]
[1625329065422,0.50539338,34501.0,34499.0,3.75078284]
[1625329065675,0.50539338,34501.0,34500.0,0.00343587]
[1625329065773,0.50539338,34501.0,34500.0,0.06243587]
[1625329065872,0.50183439,34502.0,34500.0,1.60111355]
[1625329066173,0.50183439,34502.0,34501.0,1.54208985]
[1625329066273,0.50183439,34502.0,34501.0,1.60108985]
[1625329066727,0.50183439,34502.0,34501.0,1.59765398]
[1625329066979,0.50183439,34502.0,34501.0,1.83822942]
[1625329067078,1.50612144,34502.0,34501.0,0.8124601]
[1625329067778,0.50183439,34502.0,34501.0,0.8124601]
[1625329070535,1.50531218,34502.0,34501.0,1.0971501]
[1625329070985,0.50183439,34502.0,34501.0,1.0971501]
[1625329071387,1.50324682,34502.0,34501.0,0.58426544]
[1625329072189,1.50324682,34502.0,34501.0,0.29957544]
[1625329073493,0.50183439,34502.0,34501.0,0.8122265]
[1625329073944,1.50362437,34502.0,34501.0,0.29957544]
[1625329076246,0.50183439,34502.0,34501.0,0.29957544]
[1625329076346,0.50183439,34502.0,34501.0,0.30301141]
[1625329076798,0.50183439,34502.0,34501.0,0.8155432]
[1625329078554,0.50183439,34502.0,34501.0,0.29957544]
[1625329080612,0.50183439,34502.0,34501.0,0.30301144]
[1625329083967,0.49795853,34503.0,34501.0,0.81545276]
[1625329084417,0.49795853,34503.0,34502.0,0.003436]
[1625329084668,0.49795853,34503.0,34502.0,0.062436]
[1625329085818,0.99595222,34504.0,34502.0,0.062436]
[1625329085819,0.49781174,34504.0,34502.0,0.062436]
[1625329086269,0.49781174,34504.0,34503.0,0.0034358]
[1625329086369,0.49781174,34504.0,34503.0,0.0624358]
[1625329086470,0.49786302,34505.0,34503.0,0.0624358]
[1625329086669,0.55686302,34505.0,34503.0,0.0624358]
[1625329086770,0.55686302,34505.0,34504.0,0.00343582]
[1625329087019,0.55686302,34505.0,34504.0,0.37006582]
[1625329087170,0.059,34505.0,34504.0,0.61064126]
[1625329087570,0.55658778,34505.0,34504.0,0.61064126]
[1625329088824,0.36758778,34505.0,34504.0,0.61064126]
[1625329088924,0.36758778,34505.0,34504.0,0.66964126]
[1625329089327,1.16145918,34508.0,34504.0,0.66964126]
[1625329089328,0.99480784,34508.0,34504.0,0.66964126]
[1625329089725,0.99480784,34508.0,34505.0,0.00343569]
[1625329089924,0.33182196,34507.0,34505.0,0.46278462]
[1625329090229,0.33182196,34507.0,34506.0,0.00343562]
[1625329090329,0.33182196,34507.0,34506.0,0.06243562]
[1625329090429,0.33182196,34507.0,34506.0,0.12143562]
[1625329091082,0.33235407,34509.0,34506.0,0.6025865]
[1625329091580,0.33235407,34509.0,34507.0,0.00343529]
[1625329091678,0.33245146,34510.0,34508.0,0.3413045]
[1625329091780,0.33245146,34510.0,34508.0,0.4003045]
[1625329091930,0.33245146,34510.0,34508.0,0.4593045]
[1625329092079,0.33245146,34510.0,34509.0,0.00343529]
[1625329092231,0.33226933,34511.0,34509.0,0.46264467]
[1625329092630,0.33208501,34512.0,34510.0,0.00343527]
[1625329092733,0.33208501,34512.0,34510.0,0.12143527]
[1625329093081,0.33208501,34512.0,34511.0,0.48458615]
[1625329093231,0.33208501,34512.0,34511.0,0.75652615]
[1625329093332,0.33208501,34512.0,34511.0,0.87452615]
[1625329093885,0.33208501,34512.0,34511.0,0.81552615]
[1625329094084,0.99557101,34513.0,34511.0,0.87452615]
[1625329094485,0.99557101,34513.0,34512.0,0.00343535]
[1625329094584,0.99543999,34514.0,34512.0,0.00343535]
[1625329094685,0.99543999,34514.0,34511.0,0.48115088]
[1625329094887,0.99543999,34514.0,34511.0,0.59915088]
[1625329095036,0.99526826,34513.0,34511.0,0.54015088]
[1625329095136,0.99526826,34513.0,34512.0,0.24057544]
[1625329095288,0.99526826,34513.0,34512.0,0.30301084]
[1625329095436,0.99526826,34513.0,34512.0,0.29957544]
[1625329095687,0.99526826,34513.0,34512.0,0.35857544]
[1625329095787,0.99526826,34513.0,34512.0,0.2440108]
[1625329096037,0.99526826,34513.0,34512.0,0.24057544]
[1625329096241,1.01244614,34513.0,34512.0,0.24057544]
[1625329096740,3.49947511,34513.0,34512.0,0.24057544]
[1625329097389,3.55847511,34513.0,34512.0,0.24057544]
[1625329097590,5.05049453,34513.0,34512.0,0.24057544]
[1625329099143,5.10949453,34513.0,34512.0,0.24057544]
[1625329099446,5.05049453,34513.0,34512.0,0.24057544]
[1625329099597,5.10949453,34513.0,34512.0,0.24057544]
[1625329099697,5.05049453,34513.0,34512.0,0.24057544]
[1625329099797,5.10949453,34513.0,34512.0,0.24057544]
[1625329100996,5.34975453,34513.0,34512.0,0.24057544]
[1625329104153,7.0119622,34513.0,34512.0,0.24057544]
[1625329104604,5.34975453,34513.0,34512.0,0.24057544]
[1625329104957,5.05049453,34513.0,34512.0,0.24057544]
[1625329105055,4.99149453,34513.0,34512.0,0.24057544]
[1625329105406,5.05049453,34513.0,34512.0,0.24057544]
[1625329105507,4.99149453,34513.0,34512.0,0.24057544]
[1625329106159,5.05049453,34513.0,34512.0,0.24057544]
[1625329107262,6.71444728,34513.0,34512.0,0.24057544]
[1625329109420,6.65544728,34513.0,34512.0,0.24057544]
[1625329110373,4.99149453,34513.0,34512.0,0.24057544]
[1625329110722,5.34645453,34513.0,34512.0,0.24057544]
[1625329111373,5.40545453,34513.0,34512.0,0.24057544]
[1625329111474,7.07448856,34513.0,34512.0,0.24057544]
[1625329111722,7.07448856,34513.0,34506.0,0.24057544]
[1625329111925,0.01718129,34512.0,34506.0,0.24057544]
[1625329112125,0.07618129,34512.0,34506.0,0.24057544]
[1625329112275,0.13518129,34512.0,34506.0,0.24057544]
[1625329112478,0.01718132,34511.0,34506.0,0.24057544]
[1625329112576,4.99744783,34507.0,34506.0,0.24057544]
[1625329113026,5.01462922,34507.0,34506.0,0.24057544]
[1625329113174,5.4957801,34507.0,34506.0,0.24057544]
[1625329114676,5.5547801,34507.0,34502.0,0.24057544]
[1625329115128,0.01718184,34506.0,34502.0,0.24057544]
[1625329115227,0.24057544,34503.0,34502.0,0.24057544]
[1625329115329,5.2466605,34503.0,34502.0,0.24057544]
[1625329115931,5.3056605,34503.0,34502.0,0.24057544]
[1625329116229,5.32284281,34503.0,34502.0,0.24057544]
[1625329116482,5.3056605,34503.0,34502.0,0.24057544]
[1625329117031,5.2466605,34503.0,34502.0,0.24057544]
[1625329119234,5.3056605,34503.0,34502.0,0.24057544]
[1625329120387,5.2466605,34503.0,34502.0,0.24057544]
[1625329120987,5.2466605,34503.0,34499.0,0.24057544]
[1625329121188,5.2466605,34503.0,34499.0,0.29957544]
[1625329121289,0.24057544,34500.0,34499.0,0.29957544]
[1625329121536,3.74678749,34500.0,34499.0,0.24057544]
[1625329122040,3.74678749,34500.0,34499.0,0.47084669]
[1625329122138,3.74678749,34500.0,34499.0,0.41184669]
[1625329122238,3.74678749,34500.0,34499.0,0.47084669]
[1625329122540,4.41492172,34500.0,34499.0,0.81338095]
[1625329123446,4.41492172,34500.0,34499.0,0.75781738]
[1625329124044,4.41492172,34500.0,34499.0,0.41528312]
[1625329124444,4.41492172,34500.0,34499.0,0.24401187]
[1625329125646,4.41492172,34500.0,34499.0,0.30301187]
[1625329125747,4.41492172,34500.0,34499.0,0.24401187]
[1625329126298,4.41492172,34500.0,34499.0,0.75770715]
[1625329126552,4.41492172,34500.0,34499.0,0.81670715]
[1625329126800,4.41492172,34500.0,34499.0,0.75770715]
[1625329127249,4.41492172,34500.0,34499.0,0.81670715]
[1625329127800,4.41492172,34500.0,34499.0,0.64547539]
[1625329128952,4.41492172,34500.0,34499.0,0.58647539]
[1625329129351,4.41492172,34500.0,34499.0,0.64547539]
[1625329129603,4.43210359,34500.0,34499.0,0.64547539]
[1625329129702,4.43210359,34500.0,34499.0,0.58647539]
[1625329129904,4.43210359,34500.0,34499.0,0.75768647]
[1625329130554,4.43210359,34500.0,34499.0,0.81668647]
[1625329130804,4.43210359,34500.0,34499.0,0.47422295]
[1625329130907,4.43210359,34500.0,34499.0,0.41522295]
[1625329131155,4.43210359,34500.0,34499.0,0.47422295]
[1625329131356,4.43210359,34500.0,34499.0,0.41522295]
[1625329131508,4.43210359,34500.0,34499.0,0.47422295]
[1625329131607,4.43210359,34500.0,34499.0,0.41522295]
[1625329132111,4.43210359,34500.0,34499.0,0.47422295]
[1625329132210,4.43210359,34500.0,34499.0,0.41522295]
[1625329132310,4.43210359,34500.0,34499.0,0.47422295]
[1625329132460,4.43210359,34500.0,34499.0,0.41522295]
[1625329132560,4.43210359,34500.0,34499.0,0.47422295]
[1625329133312,4.43210359,34500.0,34499.0,0.41522295]
[1625329133760,4.41492172,34500.0,34499.0,0.41522295]
[1625329133861,4.41492172,34500.0,34499.0,0.41178652]
[1625329134116,4.43210375,34500.0,34499.0,0.71094293]
[1625329134313,4.41492172,34500.0,34499.0,0.71094293]
[1625329134563,3.07924574,34500.0,34499.0,0.53973185]
[1625329134664,3.07924574,34500.0,34499.0,0.48073185]
[1625329134764,3.07924574,34500.0,34499.0,0.53973185]
[1625329135067,1.91050839,34500.0,34499.0,2.25153442]
[1625329136015,1.91050839,34500.0,34499.0,2.19253442]
[1625329136573,3.07707165,34500.0,34499.0,1.16545288]
[1625329136821,3.0942531,34500.0,34499.0,1.22445288]
[1625329136923,3.0942531,34500.0,34499.0,1.16545288]
[1625329137022,3.07707165,34500.0,34499.0,0.24401185]
[1625329137124,3.07707165,34500.0,34499.0,0.30301185]
[1625329137271,3.07707165,34500.0,34499.0,0.24401185]
[1625329137371,3.07707165,34500.0,34499.0,0.30301185]
[1625329137473,3.07707165,34500.0,34499.0,0.9287438]
[1625329138225,3.07707165,34500.0,34499.0,0.9877438]
[1625329138327,3.07707165,34500.0,34499.0,0.9287438]
[1625329138426,3.07707165,34500.0,34499.0,0.9877438]
[1625329138526,3.07707165,34500.0,34499.0,0.9287438]
[1625329138675,3.07707165,34500.0,34499.0,0.9877438]
[1625329138776,3.07707165,34500.0,34499.0,0.9287438]
[1625329138876,3.07707165,34500.0,34499.0,0.9877438]
[1625329139230,3.07707165,34500.0,34499.0,0.9287438]
[1625329139328,3.07707165,34500.0,34499.0,0.9877438]
[1625329139829,3.07707165,34500.0,34499.0,0.9287438]
[1625329139930,0.24057544,34500.0,34499.0,0.30301185]
[1625329140380,3.07319281,34500.0,34499.0,0.98772058]
[1625329140731,3.09037407,34500.0,34499.0,0.98772058]
[1625329141381,2.84979863,34500.0,34499.0,0.98772058]
[1625329143185,2.83261737,34500.0,34499.0,1.04672058]
[1625329143285,1.66628471,34500.0,34499.0,2.07369171]
[1625329143386,1.66628471,34500.0,34499.0,2.31426715]